Cogmind - Beta 15 @@@ ROGUE MODE // 2025.09.09 @ 14:46:55 Player: winnking222 Result: Destroyed by B3-KI6(R) with Subdweller Beam Cannon Performance ------------- Evolutions (0) 0 Regions Visited (2) 400 Robots Destroyed (24) 120 Value Destroyed (523) 523 Prototype IDs (0) 0 Alien Tech Used (0) 0 Bonus (0) 0 TOTAL SCORE: 1043 Bonus ------- None Cogmind --------- Core Integrity 0/250 Matter 251/300 Energy 68/100 System Corruption 2% Temperature Cool (34) Movement Rolling (160) Ox5 Location -10/Subcaves Parts ------- > --- POWER (1) -------- Subdweller Power Source > --- PROPULSION (2) --- Subdweller Monowheel > --- UTILITY (2) ------ Huge Storage Unit Seismic Detector > --- WEAPON (2) ------- Subdweller Beam Cannon Subdweller Beam Cannon > --- INVENTORY (25) --- Disposable Heat Sink Small Storage Unit Humpback Subdweller Optics Seismic Detector Particle Gun Particle Gun Assault Rifle Assault Rifle Assault Rifle Assault Rifle Battle Rifle Subdweller Machine Gun Barrage Gun Light Cannon Light Cannon Light Cannon Light Cannon Light Cannon Battle Cannon Grenade Launcher Subdweller Shrapnel Launcher Shrapnel Trap Peak State ------------ > --- POWER ------------ Subdweller Power Source > --- PROPULSION ------- Subdweller Monowheel > --- UTILITY ---------- Huge Storage Unit Seismic Detector > --- WEAPON ----------- Subdweller Beam Cannon Subdweller Beam Cannon > --- INVENTORY -------- Disposable Heat Sink Small Storage Unit Humpback Subdweller Optics Seismic Detector Particle Gun Particle Gun Assault Rifle Assault Rifle Assault Rifle Assault Rifle Battle Rifle Subdweller Machine Gun Barrage Gun Light Cannon Light Cannon Light Cannon Light Cannon Light Cannon Grenade Launcher Shrapnel Trap [Rating: 13] Favorites ----------- Power Light Ion Engine Engine Light Ion Engine Propulsion Light Treads Treads Light Treads Wheel Wheel Utility Huge Storage Unit Device Seismic Detector Storage Huge Storage Unit Protection Light Armor Plating Weapon Assault Rifle Energy Gun Particle Gun Energy Cannon Subdweller Beam Cannon Ballistic Gun Assault Rifle Ballistic Cannon Light Cannon Launcher Grenade Launcher Build | -11 -10 -10 ------- Run | Yrd Mat Sub Slots Evolved . | . . . Power . | . . . Propulsion . | . . . Utility . | . . . Weapon . | . . . Parts Attached 22 | 8 8 6 Power 5 | 2 . 3 Engine 5 | 2 . 3 Core . | . . . Reactor . | . . . Propulsion 4 | 2 1 1 Treads 2 | 2 . . Leg . | . . . Wheel 2 | . 1 1 Hover . | . . . Flight . | . . . Utility 4 | 2 2 . Device 1 | 1 . . Storage 2 | 1 1 . Processor . | . . . Hackware . | . . . Protection 1 | . 1 . Artifact . | . . . Weapon 9 | 2 5 2 Energy Gun 2 | . 2 . Energy Cannon 2 | . . 2 Ballistic Gun 3 | 2 1 . Ballistic Cannon 1 | . 1 . Launcher 1 | . 1 . Special Weapon . | . . . Impact Weapon . | . . . Slashing Weapon . | . . . Piercing Weapon . | . . . Special Melee Weapon . | . . . Unidentified Prototypes . | . . . Parts Lost 7 | . 1 6 Power 4 | . 1 3 Propulsion 2 | . . 2 Utility 1 | . . 1 Weapon . | . . . Highest Loss Streak 3 | . 1 3 To Critical Strikes . | . . . Average Backups 13 | 4 11 17 Power . | . . . Propulsion . | 2 . . Utility 2 | . 2 3 Weapon 9 | . 7 13 Tool/Special . | . . . Unused Backups 22 | . 3 19 Power . | . . . Propulsion 2 | . 2 . Utility 4 | . . 4 Weapon 16 | . 1 15 Tool/Special . | . . . Average Slot Usage (%) 95 | . 100 86 Engine 13 | . 14 12 Treads 18 | . 23 8 Wheel 6 | . 4 11 Device 8 | . 9 6 Storage 14 | . 14 14 Protection 5 | . 4 6 Energy Gun 10 | . 5 19 Energy Cannon 1 | . . 5 Ballistic Gun 13 | . 20 . Ballistic Cannon 1 | . 1 . Peak Build Rating 13 | 7 10 13 Average Rating 8 | 5 7 9 On Entrance 5 | . 7 10 Naked Turns . | . . . Heaviest Build 102 | 14 92 102 Greatest Support 40 | 40 40 20 Greatest Overweight (x) 28 | . 9 28 Average Overweight (x) 5 | . 3 8 Largest Inventory Capacity 25 | 8 25 25 Average Capacity 23 | 7 23 25 Most Carried 24 | 7 18 24 Average Carried 13 | 4 11 17 Final Capacity 25 | 8 25 25 Final Carried 24 | 6 17 24 Class Distribution -------------------- 93% | Mutant 6% | Scavenger-Mutant Dominant Class ---------------- Mutant | -10/Materials Mutant | -10/Subcaves Resources | -11 -10 -10 ----------- Run | Yrd Mat Sub Matter Collected 765 | 300 330 135 Remotely . | . . . Salvage Created 761 | 149 450 162 Parts 51 | 13 28 10 Haulers Intercepted . | . . . Recyclers Shooed . | . . . Parts Field Recycled . | . . . Retrieved Matter . | . . . Parts Self-Destructed 5 | . . 5 Prevented . | . . . Kills | -11 -10 -10 ------- Run | Yrd Mat Sub Combat Hostiles Destroyed 17 | . 13 4 Guns 16 | . 12 4 AOE 1 | . 1 . Classes Destroyed 7 | 2 4 1 Worker 1 | . 1 . Builder 1 | . 1 . Tunneler 3 | 3 . . Recycler 2 | 1 1 . Swarmer 6 | . 6 . Grunt 7 | . 7 . Subdweller 4 | . . 4 Best Kill Streak 5 | 3 5 1 Combat Bots Only 3 | . 3 1 Max Kills in Single Turn 2 | 1 2 1 Gunslinging . | . . . Exploded 1 | . 1 . Melee . | . . . Uniques/NPCs Destroyed . | . . . Combat | -11 -10 -10 -------- Run | Yrd Mat Sub Hostile Shots Fired 117 | . 82 35 Missed 35 | . 22 13 Hits 82 | . 60 22 Projectile 82 | . 60 22 Critical Strikes 2 | . 1 1 Damage Taken 1212 | . 689 523 Core 262 | . 118 144 Absorbed by Shields . | . . . Core Remaining (%) 100 | 100 . . Volleys Fired 78 | 5 51 22 Largest 2 | 2 2 2 Hottest 160 | 40 50 160 Shots Fired 156 | 10 101 45 Gun 134 | 10 83 41 Cannon 20 | . 16 4 Launcher 2 | . 2 . Special . | . . . Kinetic 108 | 10 98 . Thermal 46 | . 1 45 Explosive 2 | . 2 . Electromagnetic . | . . . Robot Hit Streak 20 | 7 12 20 Robot Miss Streak 4 | . 3 4 Penetration Max . | . . . Secondary Targets 3 | . 3 . Max Gunslinging Chain 1 | . 1 . Shots Hit Robots 96 | 7 55 34 Core Hits 38 | 5 25 8 Critical Kills . | . . . Critical Parts Destroyed 1 | . 1 . Critical Strikes 1 | . 1 . Destroy 1 | . 1 . Melee Attacks . | . . . Impact . | . . . Slashing . | . . . Piercing . | . . . Sneak Attacks . | . . . Combat Hostiles . | . . . Follow-up Attacks . | . . . Damage Inflicted 1457 | 74 934 449 Guns 1039 | 74 571 394 Cannons 162 | . 107 55 Explosions 252 | . 252 . Melee . | . . . Ramming 4 | . 4 . Kinetic 752 | 74 678 . Thermal 449 | . . 449 Explosive 252 | . 252 . Electromagnetic . | . . . Impact . | . . . Slashing . | . . . Piercing . | . . . Highest Corruption 2 | . 2 2 Average Corruption 2 | . 2 2 Corruption Purged . | . . . Corruption Blocked . | . . . Effects 14 | . 3 11 Message Errors 3 | . 1 2 Matter Fused 5 | . 1 4 Heat Flow Errors 1 | . . 1 Energy Discharges 1 | . . 1 Data Loss (minor) 1 | . . 1 Misfires 2 | . 1 1 Alerts 1 | . . 1 Overload Shots . | . . . Overflow Damage . | . . . Projectiles . | . . . Explosions . | . . . Melee . | . . . Knockbacks 3 | . 3 . Impact . | . . . Kinetic 2 | . 2 . Secondary 1 | . 1 . Self-Inflicted Damage . | . . . Shots . | . . . Rammed 2 | . 2 . Targets Rammed 2 | . 2 . Kicked . | . . . Crushed . | . . . Highest Temperature 165 | . 165 138 Average Temperature 55 | . 80 29 Received Heat Transfer 468 | . 318 150 Siege Activations . | . . . Martial Activations . | . . . Shielding Activations . | . . . Robots Disrupted . | . . . Combat Hostiles . | . . . Robots Corrupted . | . . . Combat Hostiles . | . . . Parts Fried . | . . . Impact Corruptions . | . . . Robots Melted . | . . . Combat Hostiles . | . . . Parts Melted 2 | . . 2 Heat Transferred 999 | . . 999 Parts Sabotaged . | . . . Parts Stolen . | . . . Parts Stripped . | . . . Power Chain Reactions . | . . . Alert | -11 -10 -10 ------- Run | Yrd Mat Sub Maximum Alert Level . | . . . Low Security (%) 100 | 100 100 . Level 1 . | . . . Level 2 . | . . . Level 3 . | . . . Level 4 . | . . . Level 5 . | . . . High Security . | . . . Max Security . | . . . Peak Influence 134 | 10 134 . Initial 3 | . 3 . Average 26 | 1 27 . Influence Increases 429 | 20 409 . Destroy 0b10 Robot/C 260 | . 260 . Destroy 0b10 Robot/NC 35 | 20 15 . Destroy Leader 60 | . 60 . Successful Hack 42 | . 42 . Destroy Structure 17 | . 17 . Lose Combat Pursuer 15 | . 15 . Influence Decreases 429 | 15 414 . Entered New Map 2 | . 2 . Time Decay 417 | 15 402 . Lost Part 10 | . 10 . Squads Dispatched 2 | . 2 . Investigation 1 | . 1 . Extermination . | . . . Reinforcement 1 | . 1 . Assault . | . . . Garrison . | . . . Intercept . | . . . Searches Triggered . | . . . Construction Impeded . | . . . Haulers Reinforced . | . . . Active Scanning Responses . | . . . Cargo Convoy Interrupts . | . . . Stealth | -11 -10 -10 --------- Run | Yrd Mat Sub Distress Signals 1 | . 1 . Communications Jammed . | . . . Distress Signals . | . . . Times Spotted 30 | . 23 7 Peak Tracking Total 4 | . 4 3 Tactical Retreats 1 | . 1 . Traps | -11 -10 -10 ------- Run | Yrd Mat Sub Traps Triggered 2 | . 2 . Indirectly . | . . . Trap Hack Attempts . | . . . Triggered . | . . . Disarmed . | . . . Reprogrammed . | . . . Reused . | . . . Traps Extracted . | . . . Installed . | . . . Triggered . | . . . Most Traps Carried 1 | . . 1 Machines | -11 -10 -10 ---------- Run | Yrd Mat Sub Machines Disabled . | . . . Max in Single Turn . | . . . Machines Repaired . | . . . Machines Dismantled . | . . . Machines Sabotaged . | . . . Overloaded Fab Kills . | . . . Hacking | -11 -10 -10 --------- Run | Yrd Mat Sub Machines Accessed 6 | . 6 . Terminals 6 | . 6 . Fabricators . | . . . Repair Stations . | . . . Recycling Units . | . . . Scanalyzers . | . . . Garrison Access . | . . . Total Hacks 14 | . 14 . Successful 9 | . 9 . Failed 5 | . 5 . Catastrophic . | . . . Database Lockouts . | . . . Manual 12 | . 12 . Terminals 14 | . 14 . Fabricators . | . . . Repair Stations . | . . . Recycling Units . | . . . Scanalyzers . | . . . Garrison Access . | . . . Terminal Hacks 2 | . 2 . Locate Traps 2 | . 2 . Fabricator Hacks . | . . . Repair Station Hacks . | . . . Recycling Unit Hacks . | . . . Scanalyzer . | . . . Garrison Access Hacks . | . . . Unauthorized Hacks 7 | . 7 . Terminals 7 | . 7 . Botnet 2 | . 2 . Skim 5 | . 5 . Fabricators . | . . . Repair Stations . | . . . Recycling Units . | . . . Scanalyzers . | . . . Garrison Access . | . . . Data Cores Recovered . | . . . Used . | . . . Hacking Detections 3 | . 3 . Full Trace Events 1 | . 1 . Feedback Events . | . . . Feedback Blocked . | . . . Robot Schematics Acquired . | . . . Robots Built . | . . . Authchips . | . . . Time . | . . . Total Robot Build Rating . | . . . Part Schematics Acquired . | . . . Parts Built . | . . . Authchips . | . . . Time . | . . . Total Part Build Rating . | . . . Parts Repaired . | . . . Time . | . . . Parts Recycled . | . . . Recycled Matter . | . . . Retrieved Matter . | . . . Retrieved Components . | . . . Parts Scanalyzed . | . . . Part Schematics Acquired . | . . . Parts Damaged . | . . . Bothacking | -11 -10 -10 ------------ Run | Yrd Mat Sub Used RIF Installer . | . . . Robots Hacked . | . . . Non-combat . | . . . Combat . | . . . Robot Hacks Applied . | . . . Relay Couplers Released . | . . . Fabnet Peak Effective % . | . . . Robots Rewired . | . . . Allies Hacked . | . . . Hacks Repelled . | . . . Allies | -11 -10 -10 -------- Run | Yrd Mat Sub Total Allies . | . . . Largest Group . | . . . Highest-Rated Group . | . . . Highest-Rated Ally . | . . . Total Orders . | . . . Ally Attacks . | . . . Total Damage . | . . . Kills . | . . . Allies Corrupted . | . . . Allies Melted . | . . . Intel | -11 -10 -10 ------- Run | Yrd Mat Sub Active Infowar (turns) 1784 | 21 1236 527 Seismic 1784 | 21 1236 527 Robot Analysis Total . | . . . Derelict Logs Recovered 1 | . . 1 Drone Launches . | . . . Drone Recoveries . | . . . Exploration | -11 -10 -10 ------------- Run | Yrd Mat Sub Turns Passed 3006 | 118 1845 1043 Spaces Moved 920 | 61 478 381 Core 23 | 12 . 11 Treads 429 | 49 378 2 Legs . | . . . Wheels 468 | . 100 368 Hover . | . . . Flight . | . . . Fastest Speed 50 | 50 160 150 Average Speed 248 | 138 274 233 Slowest Speed 1450 | 160 320 1450 Overloaded Moves . | . . . Propulsion Burnouts . | . . . Robots Hopped . | . . . Potential Cave-ins . | . . . Cave-ins Triggered . | . . . Exploration Rate (%) 44 | 4 93 35 Regions Visited 2 Branch Regions 1 Pre-discovered Areas . | . . . Known Exits Taken 1 | . 1 . Unknown Exits Taken 1 | 1 . . Scrap Searched 2 | . . 2 Spaces Dug 2 | . . 2 Terrain Destroyed 14 | . 12 2 Melee . | . . . Projectile 2 | . . 2 AOE 12 | . 12 . Terrain Rammed . | . . . Walls Destroyed . | . . . Machines Disabled . | . . . Actions | -11 -10 -10 --------- Run | Yrd Mat Sub Total 1483 | 85 907 491 Wait 407 | . 343 64 Move 918 | 60 477 381 Hop . | . . . Pick Up 43 | 12 17 14 Fast Attach 1 | 1 . . Attach 14 | 6 1 7 Detach . | . . . Swap 10 | 1 9 . Drop 10 | . 7 3 Fire 78 | 5 51 22 Melee . | . . . Ram 1 | . 1 . Kick . | . . . Crush 1 | . 1 . Escape Stasis . | . . . Rewire . | . . . Trap . | . . . Miscellaneous . | . . . Route ------- -11/Scrapyard -10/Materials (discovered 6 exits: [*Mat x3] / [*Min x2] / *Sub) -10/Subcaves (discovered 4 exits: *Mat x2 / Rec / [*Scr]) History --------- Turn | Location | Event 9 | -11/Scrapyard | Discovered new exit (range 14) 119 | -11/Scrapyard | Entered Materials 158 | -10/Materials | Discovered new exit (range 16) 315 | -10/Materials | Build established: Mutant 825 | -10/Materials | Discovered new exit (range 10) 996 | -10/Materials | Discovered new exit (range 13) 1117 | -10/Materials | Discovered new exit (range 3) 1418 | -10/Materials | Discovered new exit (range 16) 1559 | -10/Materials | Identified exit to Subcaves 1635 | -10/Materials | Learned location of 1 exit from Recycling 1804 | -10/Materials | Learned Storage non-interactive machine intel 1841 | -10/Materials | Learned Storage terminal intel 1964 | -10/Materials | Entered Subcaves 1965 | -10/Subcaves | Approached by a straggling Scientist 1965 | -10/Subcaves | Identified exit to Materials 2096 | -10/Subcaves | Curiously followed by a Cobbler waking with a query about "LVR3C" 2378 | -10/Subcaves | Scientist uncovered a shortcut to Scraptown 2447 | -10/Subcaves | Core integrity fell below 50% 2581 | -10/Subcaves | Disturbed a concealed Subdweller 2631 | -10/Subcaves | Core integrity fell below 20% 2661 | -10/Subcaves | Lost 3 parts (1p2n) 2875 | -10/Subcaves | Identified exit to Recycling 2881 | -10/Subcaves | Disturbed a concealed Subdweller 3002 | -10/Subcaves | Ambushed by Subdwellers from Twisted Machinery 3007 | -10/Subcaves | Destroyed by B3-KI6(R) with Subdweller Beam Cannon Last Messages --------------- 02783_ Acquired Disposable Heat Sink. 02786_ Subatomizers dissect the Sub. Optics. 02797_ Subatomizers dissect the Sub. Monowheel. 02799_ Acquired Sub. Monowheel. 02802_ Acquired Barrage Gun. 02806_ Acquired Battle Rifle. 02809_ Subatomizers dissect the Sub. Beam Cannon. 02810_ Acquired Sub. Machine Gun. 02813_ Acquired Sub. Beam Cannon. 02822_ Acquired Humpback. 02823_ Subatomizers dissect the Disposable Heat Sink. 02831_ Acquired Battle Cannon. 02837_ Subatomizers dissect the Disposable Heat Sink. 02875_ Acquired derelict log, extracted data. Loading 1 Recycling entrance... 02878_ Sub. Power Source shoots sparks and powers down. 02899_ System corrupted: Component data lost. 02912_ Subatomizers dissect the Disposable Heat Sink. 02948_ Acquired Sub. Shrapnel Launcher. 03002_ RO-5MT(R) emerges from the Twisted Machinery. Map ----- +----------------------------------------------------+ | ?????????????????????????????????????????????????? | | ?????????????????????????????????????????????????? | | ?????????????????????????????????????????????????? | | ?????????????????????????????????????????????????? | | ?????????????????????????????????????????????????? | | ?????????????????????????????????????????????????? | | ?????????????????????????????????????????????????? | | ?????????????????????????????????????????????????? | | ?????????????????????????????????????????????????? | | ?????????????????????????????????????????????????? | | ?????????????????????????????????????????????????? | | ?????????????????????????????????????????????????? | | ?????????????????????????????????????????????????? | | ?????????????????????????????????????????????????? | | ?????????????????????????????????????????????????? | | ?????????????????????????????????????????????????? | | ?????????????????????????????????????????????????? | | ???????????????????##""??????????????????????????? | | ??????????????????##""""?????????????????????????? | | ??????????????????# """??????????????????????????? | | ??????????????????# """??????????????????????????? | | ??????????????????# ""#???????????????????#?????## | | ??????????????????# ##???????????? #????# #### | | ???????????????????# "##??????? #?????# | | ???????????????????# ""#### #?????# | | ???????????????????# R @ #??# | | ???????????????????# " ## | | ???????????????????#;"""### ?????## | | ???????????????????#;"""#??# ? ##### | | ???????????????????# ""##??? ### | | ???????????????????## "#????? ##??? | | ???????????????????# #?????? ###???? | | ???????????????###?## #???????###?????????????## | | ??????????????## ## #????????????????????????## | | ??????????????# ##?????????????????????????? | | ??????????????## ##??????????????????????????? | | ???????????????## ##???????????????????????????? | | ????????????????# #????????????????????????????? | | ????????????????# ##???????????????????????????? | | ????????????????# #???????????????????????????? | | ???????????????## ##??????????????????????????? | | ???????????????# #??????????????????????#???? | | ???????????????# ##??????????????????? ? ##?# | | ???????????????## ##########??????????? ?# | | ????????????????# #???????????? ?# | | ????????????????# #????????????#" ## | | ????????????????## ## ##?????????????#""# | | ?????????????????##### ###????????????#""" | | ????????????????????# #????????????# " | | ????????????????????# ### #?????????##### | +----------------------------------------------------+ Best States ------------- Heat Dissipation 25 Energy Generation 15 Energy Capacity 250 Matter Stores 300 Matter Capacity 300 Sight Range 16 Terrain Scan Density 10 Armor Coverage 150 Evasion (%) 50 Recoil Reduction 2 Item Schematics ----------------- None Robot Schematics ------------------ None Fabricated ------------ Nothing Repaired ---------- Nothing Alien Tech Used ----------------- None Achievements -------------- None Challenges ------------ None Game ------ Seed MappingPowerAnalyzer Manual? 0 Play Time 00:10:24 Cumulative 172.7 hours Start 2025.09.09 @ 14:36:43 End 2025.09.09 @ 14:46:55 Sessions 1 Manual Loads 0 Difficulty Rogue Special Mode None Game No. 236 Rogue 236 Adventurer 0 Explorer 0 Win Type - Total 2 Types 2/0/0/0/0/0/0/0/0/0 Lore% 72 Gallery% 69 Achievement% 60 Wizard Run 0 Options --------- Layout 0 ASCII 0 Keyboard 0 Movement Mouse Keybinds 0 Fullscreen 1 Font 16/SmallcapsGlow Map View 75x55 Zoom Use 0% Tactical HUD 1 Map Filters NONE Filters NONE Steam 1 RUN: cbefc8a9-54b6-4d44-8096-6349664f05c5